Workbook

Sheet ORÇ.FINAL
A1: <---- NUMERAR SERVIÇOS PARA CPU | C1: Ministério da Integração e do Desenvolvimento Regional - MIDR
C2: Companhia de Desenvolvimento dos Vales do São Francisco e do Parnaíba
C3: 1ª Superintendência Regional
B5: OBRA: | C5: DEMOLIÇÃO DE PASSAGENS MOLHADAS SOBRE O RIO SÃO LAMBERTO E RIBEIRÃO TRAÍRAS
B6: LOCAL: | C6: CLARO DOS POÇÕES - MG
B7: DATA: | C7: OUTUBRO / 2024 | G7: BDI Serviços: | I7: ='BDI SERV'!D31/100 -> 0.2419
B8: PRAZO DE EXECUÇÃO: 60 DIAS
B9: ITEM | C9: DISCRIMINAÇÃO | D9: REFER. | E9: UNID. | F9: QUANT. | G9: P. UNITÁRIO | H9: P.UNIT.C/ BDI | I9: P. TOTAL | J9: =I25 -> 154664.29
A10: A | B10: 1 | C10: SERVIÇOS PRELIMINARES | I10: =SUM(I11:I15) -> 29989.08 | J10: =I10/I25 -> 0.1938978933
A11: 1 | B11: 1.1 | C11: MOBILIZAÇÃO E DESMOBILIZAÇÃO | D11: CPU.1 | E11: GL | F11: 1 | G11: =VLOOKUP(A11,CPU!$A$1:$N$2920,9) -> 5144.96 | H11: =VLOOKUP(A11,CPU!$A$1:$N$2920,10) -> 6389.525824 | I11: =ROUND(F11*H11,2) -> 6389.53 | J11: =I11/$J$9 -> 0.0413122512
A12: 2 | B12: 1.2 | C12: ADMINISTRAÇÃO LOCAL E MANUTENÇÃO DO CANTEIRO DE OBRAS | D12: CPU.2 | E12: GL | F12: 1 | G12: =VLOOKUP(A12,CPU!$A$1:$N$2920,9) -> 13875.2 | H12: =VLOOKUP(A12,CPU!$A$1:$N$2920,10) -> 17231.61088 | I12: 17231.61 | J12: =I12/$J$9 -> 0.1114129836
A13: 3 | B13: 1.3 | C13: LIMPEZA MECANIZADA DE CAMADA VEGETAL, VEGETAÇÃO E PEQUENAS ÁRVORES (DIÂMETRO DE TRONCO MENOR QUE 0,20 M) | D13: 98525 | E13: M2 | F13: 400 | G13: =VLOOKUP(A13,CPU!$A$1:$N$2920,9) -> 0.45 | H13: =VLOOKUP(A13,CPU!$A$1:$N$2920,10) -> 0.558855 | I13: 223.54 | J13: =I13/$J$9 -> 0.001445323934
A14: 4 | B14: 1.4 | C14: INSTALAÇÕES E CANTEIRO DE OBRAS | D14: CPU.3 | E14: GL | F14: 2 | G14: =VLOOKUP(A14,CPU!$A$1:$N$2920,9) -> 1989 | H14: =VLOOKUP(A14,CPU!$A$1:$N$2920,10) -> 2470.1391 | I14: 4940.28 | J14: 0.03194195635
A15: 5 | B15: 1.5 | C15: PLACA DE OBRA EM CHAPA DE AÇO GALVANIZADO | D15: 103689 | E15: M2 | F15: 2 | G15: =VLOOKUP(A15,CPU!$A$1:$N$2920,9) -> 484.79 | H15: =VLOOKUP(A15,CPU!$A$1:$N$2920,10) -> 602.060701 | I15: 1204.12 | J15: 0.007785378254
A16: B | B16: 2 | C16: SERVIÇOS DE DEMOLIÇÃO | I16: =SUM(I17:I24) -> 124675.21 | J16: =I16/I25 -> 0.8061021067
A17: 6 | B17: 2.1 | C17: EXECUÇÃO DE ENSECADEIRA COM RIP RAP PARA CONTENÇÃO PROVISÓRIA DA ÁGUA, ENCHIMENTO COM TERRA/AREIA, INCLUSIVE FORNECIMENTO DOS MATERIAIS E EXECUÇÃO | D17: CPU.4 | E17: M3 | F17: 60 | G17: =VLOOKUP(A17,CPU!$A$1:$N$2920,9) -> 256.17 | H17: =VLOOKUP(A17,CPU!$A$1:$N$2920,10) -> 318.137523 | I17: 19088.25 | J17: 0.123417306
A18: 7 | B18: 2.2 | C18: BOMBEAMENTO/ESGOTAMENTO COM BOMBA SUBMERSÍVEL | D18: 104482 | E18: H | F18: 240 | G18: =VLOOKUP(A18,CPU!$A$1:$N$2920,9) -> 29.71 | H18: =VLOOKUP(A18,CPU!$A$1:$N$2920,10) -> 36.896849 | I18: 8855.24 | J18: 0.05725458669
A19: 8 | B19: 2.3 | C19: DEMOLIÇAO MECANICA DE CONCRETO ARMADO COM ESCAVADEIRA HIDRÁULICA (MARTELO ROMPEDOR) | D19: 1619003 | E19: M3 | F19: 450 | G19: =VLOOKUP(A19,CPU!$A$1:$N$2920,9) -> 56.77737665 | H19: =VLOOKUP(A19,CPU!$A$1:$N$2920,10) -> 70.51182407 | I19: 31730.32 | J19: 0.2051560835
A20: 8.5 | B20: 2.4 | C20: ARRASAMENTO MECANICO DE ESTACA DE CONCRETO ARMADO, DIAMETROS DE ATÉ 40 CM | D20: 95601 | E20: UNID. | F20: 36 | G20: =VLOOKUP(A20,CPU!$A$1:$N$2920,9) -> 17.23 | H20: =VLOOKUP(A20,CPU!$A$1:$N$2920,10) -> 21.397937 | I20: 770.33 | J20: 0.004980658431
A21: 9 | B21: 2.5 | C21: CARGA, MANOBRA E DESCARGA DE ENTULHO E MATERIAL EM GERAL EM CAMINHÃO BASCULANTE | D21: 100984 | E21: M3 | F21: 800 | G21: =VLOOKUP(A21,CPU!$A$1:$N$2920,9) -> 8.95 | H21: =VLOOKUP(A21,CPU!$A$1:$N$2920,10) -> 11.115005 | I21: 8892 | J21: 0.05749226276
A22: 10 | B22: 2.6 | C22: TRANSPORTE COM CAMINHÃO BASCULANTE, MATERIAL EM GERAL (AREIA, ENTULHO, ETC.), EM VIA COM REVESTIMENTO PRIMÁRIO | D22: 95426 | E22: M3XKM | F22: 5000 | G22: =VLOOKUP(A22,CPU!$A$1:$N$2920,9) -> 2.03 | H22: =VLOOKUP(A22,CPU!$A$1:$N$2920,10) -> 2.521057 | I22: 12605.29 | J22: 0.0815009722
A23: 11 | B23: 2.7 | C23: TRANSPORTE COM CAMINHÃO BASCULANTE, MATERIAL EM GERAL (AREIA, ENTULHO, ETC.), EM VIA PAVIMENTADA | D23: 95427 | E23: M3XKM | F23: 45000 | G23: =VLOOKUP(A23,CPU!$A$1:$N$2920,9) -> 0.76 | H23: =VLOOKUP(A23,CPU!$A$1:$N$2920,10) -> 0.943844 | I23: 42472.98 | J23: 0.2746140043
A24: 12 | B24: 2.8 | C24: REGULARIZAÇÃO DE SUPERFÍCIES COM MOTONIVELADORA | D24: 100575 | E24: M2 | F24: 1500 | G24: =VLOOKUP(A24,CPU!$A$1:$N$2920,9) -> 0.14 | H24: =VLOOKUP(A24,CPU!$A$1:$N$2920,10) -> 0.173866 | I24: 260.8 | J24: 0.001686232808
B25: TOTAL GERAL DA OBRA COM BDI | I25: =SUM(I10,I16) -> 154664.29

Sheet CPU
A1: 1 | B1: CODEVASF | E1: COMPOSIÇÃO DE PREÇO UNITÁRIO | I1: =H12 -> 5144.96 | J1: =H14 -> 6389.525824 | K1: BDI CALCULADO: | M1: =ORÇ.FINAL!I7 -> 0.2419
B2: OBRA: | C2: =ORÇ.FINAL!C5 -> DEMOLIÇÃO DE PASSAGENS MOLHADAS SOBRE O RIO SÃO LAMBERTO E RIBEIRÃO TRAÍRAS | G2: DATA: | H2: =ORÇ.FINAL!C7 -> OUTUBRO / 2024
B3: SERVIÇO: | C3: =VLOOKUP(A1,ORÇ.FINAL!A:I,3,0) -> MOBILIZAÇÃO E DESMOBILIZAÇÃO | E3: Referência: | F3: =VLOOKUP(A1,ORÇ.FINAL!A:I,4,0) -> CPU.1 | G3: UNIDADE: | H3: =VLOOKUP(A1,ORÇ.FINAL!A:I,5,0) -> GL | I3: OK
B5: TIPO ITEM | C5: CODIGO ITEM | D5: DESCRIÇÃO ITEM | E5: UNIDADE ITEM | F5: COEFICIENTE | G5: PRECO UNITARIO | H5: CUSTO TOTAL
B6: COMPOSICAO | C6: 73467 | D6: CAMINHÃO TOCO, PBT 14.300 KG, CARGA ÚTIL MÁX. 9.710 KG, DIST. ENTRE EIXOS 3,56 M, POTÊNCIA 185 CV, INCLUSIVE CARROCERIA FIXA ABERTA DE MADEIRA P/ TRANSPORTE GERAL DE CARGA SECA, DIMEN. APROX. 2,50 X 6,50 X 0,50M | E6: CHP DIURNO. | F6: 4 | G6: 244,20 | H6: =ROUNDDOWN(F6*G6,2) -> 976.8
B7: COMPOSICAO | C7: 91395 | D7: CAMINHÃO TOCO, PBT 14.300 KG, CARGA ÚTIL MÁX. 9.710 KG, DIST. ENTRE EIXOS 3,56 M, POTÊNCIA 185 CV, INCLUSIVE CARROCERIA FIXA ABERTA DE MADEIRA P/ TRANSPORTE GERAL DE CARGA SECA, DIMEN. APROX. 2,50 X 6,50 X 0,50M | E7: CHI DIURNO. | F7: 4 | G7: 59,34 | H7: =ROUNDDOWN(F7*G7,2) -> 237.36
B8: COMPOSICAO | C8: 5914640 | D8: TRANSPORTE COM CAVALO MECÂNICO COM SEMIRREBOQUE COM CAPACIDADE DE 30 T - RODOVIA PAVIMENTADA | E8: TON*KM | F8: 2134 | G8: 0.56 | H8: 1195.04
B9: COMPOSIÇÃO | C9: 88316 | D9: SERVENTE COM ENCARGOS COMPLEMENTARES | E9: H | F9: 8 | G9: 20.41 | H9: 163.28
H10: 0
B11: PRODUÇÃO DA EQUIPE | E11: 0.5 | F11: CUSTO | H11: =SUM(H6:H10) -> 2572.48
B12: TOTAL | H12: =H11/E11 -> 5144.96 | I12: OK
B13: BDI % | H13: =1+$M$1 -> 1.2419
B14: TOTAL DO SERVIÇO - R$ | H14: =H12*H13 -> 6389.525824
A16: =A1+1 -> 2 | B16: CODEVASF | E16: COMPOSIÇÃO DE PREÇO UNITÁRIO | I16: =H27 -> 13875.2 | J16: =H29 -> 17231.61088
B17: OBRA: | C17: =$C$2 -> DEMOLIÇÃO DE PASSAGENS MOLHADAS SOBRE O RIO SÃO LAMBERTO E RIBEIRÃO TRAÍRAS | G17: DATA: | H17: =$H$2 -> OUTUBRO / 2024
B18: SERVIÇO: | C18: =VLOOKUP(A16,ORÇ.FINAL!A:I,3,0) -> ADMINISTRAÇÃO LOCAL E MANUTENÇÃO DO CANTEIRO DE OBRAS | E18: SINAPI | F18: =VLOOKUP(A16,ORÇ.FINAL!A:I,4,0) -> CPU.2 | G18: UNIDADE: | H18: =VLOOKUP(A16,ORÇ.FINAL!A:I,5,0) -> GL | I18: OK
B20: TIPO ITEM | C20: CODIGO ITEM | D20: DESCRIÇÃO ITEM | E20: UNIDADE ITEM | F20: COEFICIENTE | G20: PRECO UNITARIO | H20: CUSTO TOTAL
B21: INSUMO | C21: 3346 | D21: LOCACAO DE GRUPO GERADOR *80 A 125* KVA, MOTOR DIESEL, REBOCAVEL | E21: H | F21: =8*30 -> 240 | G21: 20.3 | H21: =ROUNDDOWN(F21*G21,2) -> 4872
B22: COTAÇÃO | C22: MERC. | D22: VEÍCULO PARA TRANSPORTE DE PESSOAL, INCLUSIVE COMBUSTÍVEL | E22: VB | F22: 1 | G22: 600 | H22: 600
B23: COMPOSICAO | C23: 90777 | D23: ENGENHEIRO CIVIL DE OBRA COM ENCARGOS COMPLEMENTARES | E23: H | F23: 22 | G23: 118,01 | H23: 2596.22
B24: COMPOSIÇÃO | C24: 100309 | D24: TÉCNICO EM SEGURANÇA DO TRABALHO COM ENCARGOS COMPLEMENTARES | E24: H | F24: 22 | G24: 38,34 | H24: 843.48
B25: COMPOSICAO | C25: 90776 | D25: ENCARREGADO GERAL COM ENCARGOS COMPLEMENTARES | E25: H | F25: 90 | G25: 55,15 | H25: 4963.5
B26: PRODUÇÃO DA EQUIPE | E26: 1 | F26: CUSTO | H26: =SUM(H21:H25) -> 13875.2
B27: TOTAL | H27: =H26/E26 -> 13875.2 | I27: OK
B28: BDI % | H28: =1+$M$1 -> 1.2419
B29: TOTAL DO SERVIÇO - R$ | H29: =H27*H28 -> 17231.61088
A31: 3 | B31: CODEVASF | E31: COMPOSIÇÃO DE PREÇO UNITÁRIO | I31: =H41 -> 0.45 | J31: =H43 -> 0.558855
B32: OBRA: | C32: =$C$2 -> DEMOLIÇÃO DE PASSAGENS MOLHADAS SOBRE O RIO SÃO LAMBERTO E RIBEIRÃO TRAÍRAS | G32: DATA: | H32: =$H$2 -> OUTUBRO / 2024
B33: SERVIÇO: | C33: =VLOOKUP(A31,ORÇ.FINAL!A:I,3,0) -> LIMPEZA MECANIZADA DE CAMADA VEGETAL, VEGETAÇÃO E PEQUENAS ÁRVORES (DIÂMETRO DE TRONCO MENOR QUE 0,20 M) | E33: SINAPI | F33: =VLOOKUP(A31,ORÇ.FINAL!A:I,4,0) -> 98525 | G33: UNIDADE: | H33: =VLOOKUP(A31,ORÇ.FINAL!A:I,5,0) -> M2 | I33: OK
B35: TIPO ITEM | C35: CODIGO ITEM | D35: DESCRIÇÃO ITEM | E35: UNIDADE ITEM | F35: COEFICIENTE | G35: PRECO UNITARIO | H35: CUSTO TOTAL
B36: COMPOSICAO | C36: 88316 | D36: SERVENTE COM ENCARGOS COMPLEMENTARES | E36: H | F36: 0,0030000 | G36: 20,41 | H36: =ROUNDDOWN(F36*G36,2) -> 0.06
B37: COMPOSICAO | C37: 88441 | D37: JARDINEIRO COM ENCARGOS COMPLEMENTARES | E37: H | F37: 0,0030000 | G37: 23,84 | H37: 0.07
B38: COMPOSICAO | C38: 89031 | D38: TRATOR DE ESTEIRAS, POTÊNCIA 100 HP, PESO OPERACIONAL 9,4 T, COM LÂMINA 2,19 M3 | E38: CHI | F38: 0,0024000 | G38: 84,19 | H38: 0.2
B39: COMPOSICAO | C39: 89032 | D39: TRATOR DE ESTEIRAS, POTÊNCIA 100 HP, PESO OPERACIONAL 9,4 T, COM LÂMINA 2,19 M3 | E39: CHP | F39: 0,0006000 | G39: 207,13 | H39: 0.12
B40: PRODUÇÃO DA EQUIPE | E40: 1 | F40: CUSTO | H40: =SUM(H36:H39) -> 0.45
B41: TOTAL | H41: =H40/E40 -> 0.45 | I41: OK
B42: BDI % | H42: =1+$M$1 -> 1.2419
B43: TOTAL DO SERVIÇO - R$ | H43: =H41*H42 -> 0.558855
A45: 4 | B45: CODEVASF | E45: COMPOSIÇÃO DE PREÇO UNITÁRIO | I45: =H53 -> 1989 | J45: =H55 -> 2470.1391
B46: OBRA: | C46: =$C$2 -> DEMOLIÇÃO DE PASSAGENS MOLHADAS SOBRE O RIO SÃO LAMBERTO E RIBEIRÃO TRAÍRAS | G46: DATA: | H46: =$H$2 -> OUTUBRO / 2024
B47: SERVIÇO: | C47: =VLOOKUP(A45,ORÇ.FINAL!A:I,3,0) -> INSTALAÇÕES E CANTEIRO DE OBRAS | E47: SINAPI | F47: =VLOOKUP(A45,ORÇ.FINAL!A:I,4,0) -> CPU.3 | G47: UNIDADE: | H47: =VLOOKUP(A45,ORÇ.FINAL!A:I,5,0) -> GL
B49: TIPO ITEM | C49: CODIGO ITEM | D49: DESCRIÇÃO ITEM | E49: UNIDADE ITEM | F49: COEFICIENTE | G49: PRECO UNITARIO | H49: CUSTO TOTAL
B50: INSUMO | C50: 10775 | D50: LOCACAO DE CONTAINER 2,30 X 6,00M, ALT. 2,50 M, COM SANITARIO, PARA ESCRITORIO, COMPLETO, SEM DIVISORIAS INTERNAS | E50: MÊS | F50: 2 | G50: 930 | H50: =ROUNDDOWN(F50*G50,2) -> 1860
B51: INSUMO | C51: 37524 | D51: TELA PLASTICA LARANJA, TIPO TAPUME PARA SINALIZACAO, MALHA RETANGULAR | E51: M | F51: 60 | G51: 2.15 | H51: 129
B52: PRODUÇÃO DA EQUIPE | E52: 1 | F52: CUSTO | H52: =SUM(H50:H51) -> 1989
B53: TOTAL | H53: =H52/E52 -> 1989 | I53: OK
B54: BDI % | H54: =1+$M$1 -> 1.2419
B55: TOTAL DO SERVIÇO - R$ | H55: =H53*H54 -> 2470.1391
A57: =A45+1 -> 5 | B57: CODEVASF | E57: COMPOSIÇÃO DE PREÇO UNITÁRIO | I57: =H70 -> 484.79 | J57: =H72 -> 602.060701
B58: OBRA: | C58: =$C$2 -> DEMOLIÇÃO DE PASSAGENS MOLHADAS SOBRE O RIO SÃO LAMBERTO E RIBEIRÃO TRAÍRAS | G58: DATA: | H58: =$H$2 -> OUTUBRO / 2024
B59: SERVIÇO: | C59: =VLOOKUP(A57,ORÇ.FINAL!A:I,3,0) -> PLACA DE OBRA EM CHAPA DE AÇO GALVANIZADO | E59: SINAPI | F59: =VLOOKUP(A57,ORÇ.FINAL!A:I,4,0) -> 103689 | G59: UNIDADE: | H59: =VLOOKUP(A57,ORÇ.FINAL!A:I,5,0) -> M2 | I59: OK
B61: TIPO ITEM | C61: CODIGO ITEM | D61: DESCRIÇÃO ITEM | E61: UNIDADE ITEM | F61: COEFICIENTE | G61: PRECO UNITARIO | H61: CUSTO TOTAL
B62: INSUMO | C62: 4509 | D62: SARRAFO *2,5 X 10* CM EM PINUS, MISTA OU EQUIVALENTE DA REGIAO - BRUTA | E62: M | F62: 3,2083000 | G62: 4,02 | H62: =ROUNDDOWN(F62*G62,2) -> 12.89
B63: INSUMO | C63: 4813 | D63: PLACA DE OBRA (PARA CONSTRUCAO CIVIL) EM CHAPA GALVANIZADA *N. 22*, ADESIVADA, DE *2,4 X 1,2* M (SEM POSTES PARA FIXACAO) | E63: M2 | F63: 1,0000000 | G63: 429,50 | H63: 429.5
B64: INSUMO | C64: 5065 | D64: PREGO DE ACO POLIDO COM CABECA 10 X 10 (7/8 X 17) | E64: KG | F64: 0,0113000 | G64: 35,12 | H64: 0.39
B65: INSUMO | C65: 5069 | D65: PREGO DE ACO POLIDO COM CABECA 17 X 27 (2 1/2 X 11) | E65: KG | F65: 0,0132000 | G65: 18,82 | H65: 0.24
B66: COMPOSICAO | C66: 88262 | D66: CARPINTEIRO DE FORMAS COM ENCARGOS COMPLEMENTARES | E66: H | F66: 0,3729000 | G66: 27,77 | H66: 10.35
B67: COMPOSICAO | C67: 88316 | D67: SERVENTE COM ENCARGOS COMPLEMENTARES | E67: H | F67: 1,1186000 | G67: 20,41 | H67: 22.83
B68: COMPOSICAO | C68: 94962 | D68: CONCRETO MAGRO PARA LASTRO, TRAÇO 1:4,5:4,5 (CIMENTO/ AREIA MÉDIA/ BRITA 1) - PREPARO MECÂNICO COM BETONEIRA 400 L | E68: M3 | F68: 0.02 | G68: 429.71 | H68: 8.59
B69: PRODUÇÃO DA EQUIPE | E69: 1 | F69: CUSTO | H69: =SUM(H62:H68) -> 484.79
B70: TOTAL | H70: =H69/E69 -> 484.79 | I70: OK
B71: BDI % | H71: =1+$M$1 -> 1.2419
B72: TOTAL DO SERVIÇO - R$ | H72: =H70*H71 -> 602.060701
A74: =A57+1 -> 6 | B74: CODEVASF | E74: COMPOSIÇÃO DE PREÇO UNITÁRIO | I74: =H84 -> 256.17 | J74: =H86 -> 318.137523
B75: OBRA: | C75: =$C$2 -> DEMOLIÇÃO DE PASSAGENS MOLHADAS SOBRE O RIO SÃO LAMBERTO E RIBEIRÃO TRAÍRAS | G75: DATA: | H75: =$H$2 -> OUTUBRO / 2024
B76: SERVIÇO: | C76: =VLOOKUP(A74,ORÇ.FINAL!A:I,3,0) -> EXECUÇÃO DE ENSECADEIRA COM RIP RAP PARA CONTENÇÃO PROVISÓRIA DA ÁGUA, ENCHIMENTO COM TERRA/AREIA, INCLUSIVE FORNECIMENTO DOS MATERIAIS E EXECUÇÃO | E76: SINAPI | F76: =VLOOKUP(A74,ORÇ.FINAL!A:I,4,0) -> CPU.4 | G76: UNIDADE: | H76: =VLOOKUP(A74,ORÇ.FINAL!A:I,5,0) -> M3 | I76: OK
B78: TIPO ITEM | C78: CODIGO ITEM | D78: DESCRIÇÃO ITEM | E78: UNIDADE ITEM | F78: COEFICIENTE | G78: PRECO UNITARIO | H78: CUSTO TOTAL
B79: INSUMO | C79: 37526 | D79: SACO DE RAFIA PARA ENTULHO, NOVO, LISO (SEM CLICHE), *60 x 90* CM | E79: UNID. | F79: 20 | G79: 2.88 | H79: =ROUNDDOWN(F79*G79,2) -> 57.6
B80: INSUMO | C80: 370 | D80: AREIA MEDIA - POSTO JAZIDA/FORNECEDOR (RETIRADO NA JAZIDA, SEM TRANSPORTE) | E80: M3 | F80: 1 | G80: 130 | H80: 130
B81: COMPOSICAO | C81: 88316 | D81: SERVENTE COM ENCARGOS COMPLEMENTARES | E81: H | F81: 2 | G81: 20,41 | H81: 40.82
B82: COMPOSIÇÃO | C82: 100195 | D82: TRANSPORTE HORIZONTAL MANUAL, DE SACOS DE 50 KG | E82: KGXKM | F82: =1500*0.025 -> 37.5 | G82: 0,74 | H82: 27.75
B83: PRODUÇÃO DA EQUIPE | E83: 1 | F83: CUSTO | H83: =SUM(H79:H82) -> 256.17
B84: TOTAL | H84: =H83/E83 -> 256.17 | I84: OK
B85: BDI % | H85: =1+$M$1 -> 1.2419
B86: TOTAL DO SERVIÇO - R$ | H86: =H84*H85 -> 318.137523
A88: =A74+1 -> 7 | B88: CODEVASF | E88: COMPOSIÇÃO DE PREÇO UNITÁRIO | I88: =H98 -> 29.71 | J88: =H100 -> 36.896849
B89: OBRA: | C89: =$C$2 -> DEMOLIÇÃO DE PASSAGENS MOLHADAS SOBRE O RIO SÃO LAMBERTO E RIBEIRÃO TRAÍRAS | G89: DATA: | H89: =$H$2 -> OUTUBRO / 2024
B90: SERVIÇO: | C90: =VLOOKUP(A88,ORÇ.FINAL!A:I,3,0) -> BOMBEAMENTO/ESGOTAMENTO COM BOMBA SUBMERSÍVEL | E90: SINAPI | F90: =VLOOKUP(A88,ORÇ.FINAL!A:I,4,0) -> 104482 | G90: UNIDADE: | H90: =VLOOKUP(A88,ORÇ.FINAL!A:I,5,0) -> H | I90: OK
B92: TIPO ITEM | C92: CODIGO ITEM | D92: DESCRIÇÃO ITEM | E92: UNIDADE ITEM | F92: COEFICIENTE | G92: PRECO UNITARIO | H92: CUSTO TOTAL
B93: COMPOSICAO | C93: 88264 | D93: ELETRICISTA COM ENCARGOS COMPLEMENTARES | E93: H | F93: 1,0000000 | G93: 28,54 | H93: =ROUNDDOWN(F93*G93,2) -> 28.54
B94: COMPOSICAO | C94: 89021 | D94: BOMBA SUBMERSÍVEL ELÉTRICA TRIFÁSICA, POTÊNCIA 2,96 HP, Ø ROTOR 144 MM SEMI-ABERTO, BOCAL DE SAÍDA Ø 2, HM/Q = 2 MCA / 38,8 M3/H A 28 MCA / 5 M3/H | E94: CHP | F94: 0,2500000 | G94: 3,04 | H94: 0.76
B95: COMPOSICAO | C95: 89022 | D95: BOMBA SUBMERSÍVEL ELÉTRICA TRIFÁSICA, POTÊNCIA 2,96 HP, Ø ROTOR 144 MM SEMI-ABERTO, BOCAL DE SAÍDA Ø 2, HM/Q = 2 MCA / 38,8 M3/H A 28 MCA / 5 M3/H | E95: CHI | F95: 0,7500000 | G95: 0,55 | H95: 0.41
H96: 0
B97: PRODUÇÃO DA EQUIPE | E97: 1 | F97: CUSTO | H97: =SUM(H93:H96) -> 29.71
B98: TOTAL | H98: =H97/E97 -> 29.71 | I98: OK
B99: BDI % | H99: =1+$M$1 -> 1.2419
B100: TOTAL DO SERVIÇO - R$ | H100: =H98*H99 -> 36.896849
A102: =A88+1 -> 8 | B102: CODEVASF | E102: COMPOSIÇÃO DE PREÇO UNITÁRIO | I102: =H112 -> 56.77737665 | J102: =H114 -> 70.51182407
B103: OBRA: | C103: =$C$2 -> DEMOLIÇÃO DE PASSAGENS MOLHADAS SOBRE O RIO SÃO LAMBERTO E RIBEIRÃO TRAÍRAS | G103: DATA: | H103: =$H$2 -> OUTUBRO / 2024
B104: SERVIÇO: | C104: =VLOOKUP(A102,ORÇ.FINAL!A:I,3,0) -> DEMOLIÇAO MECANICA DE CONCRETO ARMADO COM ESCAVADEIRA HIDRÁULICA (MARTELO ROMPEDOR) | E104: SICRO | F104: =VLOOKUP(A102,ORÇ.FINAL!A:I,4,0) -> 1619003 | G104: UNIDADE: | H104: =VLOOKUP(A102,ORÇ.FINAL!A:I,5,0) -> M3 | I104: OK
B106: TIPO ITEM | C106: CODIGO ITEM | D106: DESCRIÇÃO ITEM | E106: UNIDADE ITEM | F106: COEFICIENTE | G106: PRECO UNITARIO | H106: CUSTO TOTAL
B107: COMPOSICAO | C107: E9127 | D107: ESCAVADEIRA HIDRÁULICA COM MARTELO HIDRÁULICO DE 520 KG - 75 KW | E107: CPH | F107: 1 | G107: 367.5174 | H107: =ROUNDDOWN(F107*G107,2) -> 367.51
B108: COMPOSICAO | C108: E9127 | D108: ESCAVADEIRA HIDRÁULICA COM MARTELO HIDRÁULICO DE 520 KG - 75 KW | E108: CHI | F108: 0 | G108: 169.8757 | H108: 0
B109: INSUMO | C109: M0603 | D109: PONTEIRO PARA ROMPEDOR HIDRÁULICO DE 520 KG | E109: unid. | F109: =0.00071*E111 -> 0.0059001 | G109: 5849.6321 | H109: =ROUNDDOWN(F109*G109,2) -> 34.51
B110: COMPOSICAO | C110: 1416201 | D110: CORTE DE BARRAS DE AÇO CA-50 COM MAÇARICO OXIACETILENO | E110: CM² | F110: =40*E111 -> 332.4 | G110: 0.21 | H110: 69.8
B111: PRODUÇÃO DA EQUIPE | E111: 8.31 | F111: CUSTO | H111: =SUM(H107:H110) -> 471.82
B112: TOTAL | H112: =H111/E111 -> 56.77737665 | I112: OK
B113: BDI % | H113: =1+$M$1 -> 1.2419
B114: TOTAL DO SERVIÇO - R$ | H114: =H112*H113 -> 70.51182407
A116: 8.5 | B116: CODEVASF | E116: COMPOSIÇÃO DE PREÇO UNITÁRIO | I116: =H125 -> 17.23 | J116: =H127 -> 21.397937
B117: OBRA: | C117: =$C$2 -> DEMOLIÇÃO DE PASSAGENS MOLHADAS SOBRE O RIO SÃO LAMBERTO E RIBEIRÃO TRAÍRAS | G117: DATA: | H117: =$H$2 -> OUTUBRO / 2024
B118: SERVIÇO: | C118: =VLOOKUP(A116,ORÇ.FINAL!A:I,3,0) -> ARRASAMENTO MECANICO DE ESTACA DE CONCRETO ARMADO, DIAMETROS DE ATÉ 40 CM | E118: SINAPI | F118: =VLOOKUP(A116,ORÇ.FINAL!A:I,4,0) -> 95601 | G118: UNIDADE: | H118: =VLOOKUP(A116,ORÇ.FINAL!A:I,5,0) -> UNID.
B120: TIPO ITEM | C120: CODIGO ITEM | D120: DESCRIÇÃO ITEM | E120: UNIDADE ITEM | F120: COEFICIENTE | G120: PRECO UNITARIO | H120: CUSTO TOTAL
B121: COMPOSICAO | C121: 88316 | D121: SERVENTE COM ENCARGOS COMPLEMENTARES | E121: H | F121: 0.363 | G121: 20,41 | H121: =ROUNDDOWN(F121*G121,2) -> 7.4
B122: COMPOSICAO | C122: 102274 | D122: MARTELO DEMOLIDOR ELÉTRICO, COM POTÊNCIA DE 2.000 W, 1.000 IMPACTOS POR MINUTO, PESO DE 30 KG - CHI DIURNO. AF_01/2021 | E122: CHI | F122: 0.2003 | G122: 25,91 | H122: 5.18
B123: COMPOSICAO | C123: 102275 | D123: MARTELO DEMOLIDOR ELÉTRICO, COM POTÊNCIA DE 2.000 W, 1.000 IMPACTOS POR MINUTO, PESO DE 30 KG - CHP DIURNO. AF_01/2021 | E123: CHP | F123: 0.1627 | G123: 28,63 | H123: 4.65
B124: PRODUÇÃO DA EQUIPE | E124: 1 | F124: CUSTO | H124: =SUM(H119:H123) -> 17.23
B125: TOTAL | H125: =H124/E124 -> 17.23
B126: BDI % | H126: =1+$M$1 -> 1.2419
B127: TOTAL DO SERVIÇO - R$ | H127: =H125*H126 -> 21.397937
A129: =A102+1 -> 9 | B129: CODEVASF | E129: COMPOSIÇÃO DE PREÇO UNITÁRIO | I129: =H140 -> 8.95 | J129: =H142 -> 11.115005
B130: OBRA: | C130: =$C$2 -> DEMOLIÇÃO DE PASSAGENS MOLHADAS SOBRE O RIO SÃO LAMBERTO E RIBEIRÃO TRAÍRAS | G130: DATA: | H130: =$H$2 -> OUTUBRO / 2024
B131: SERVIÇO: | C131: =VLOOKUP(A129,ORÇ.FINAL!A:I,3,0) -> CARGA, MANOBRA E DESCARGA DE ENTULHO E MATERIAL EM GERAL EM CAMINHÃO BASCULANTE | E131: SINAPI | F131: =VLOOKUP(A129,ORÇ.FINAL!A:I,4,0) -> 100984 | G131: UNIDADE: | H131: =VLOOKUP(A129,ORÇ.FINAL!A:I,5,0) -> M3 | I131: OK
B133: TIPO ITEM | C133: CODIGO ITEM | D133: DESCRIÇÃO ITEM | E133: UNIDADE ITEM | F133: COEFICIENTE | G133: PRECO UNITARIO | H133: CUSTO TOTAL
B134: COMPOSICAO | C134: 5631 | D134: ESCAVADEIRA HIDRÁULICA SOBRE ESTEIRAS, CAÇAMBA 0,80 M3, PESO OPERACIONAL 17 T, POTENCIA BRUTA 111 HP | E134: CHP | F134: 0,0083000 | G134: 212,09 | H134: =ROUNDDOWN(F134*G134,2) -> 1.76
B135: COMPOSICAO | C135: 5632 | D135: ESCAVADEIRA HIDRÁULICA SOBRE ESTEIRAS, CAÇAMBA 0,80 M3, PESO OPERACIONAL 17 T, POTENCIA BRUTA 111 HP | E135: CHI | F135: 0,0074000 | G135: 93,41 | H135: 0.69
B136: COMPOSICAO | C136: 89883 | D136: CAMINHÃO BASCULANTE 18 M3, COM CAVALO MECÂNICO DE CAPACIDADE MÁXIMA DE TRAÇÃO COMBINADO DE 45000 KG, POTÊNCIA 330 CV, INCLUSIVE SEMIREBOQUE COM CAÇAMBA METÁLICA | E136: CHP | F136: 0,0153000 | G136: 366,36 | H136: 5.6
B137: COMPOSICAO | C137: 89884 | D137: CAMINHÃO BASCULANTE 18 M3, COM CAVALO MECÂNICO DE CAPACIDADE MÁXIMA DE TRAÇÃO COMBINADO DE 45000 KG, POTÊNCIA 330 CV, INCLUSIVE SEMIREBOQUE COM CAÇAMBA METÁLICA | E137: CHI | F137: 0,0095000 | G137: 95,31 | H137: 0.9
H138: 0
B139: PRODUÇÃO DA EQUIPE | E139: 1 | F139: CUSTO | H139: =SUM(H134:H138) -> 8.95
B140: TOTAL | H140: =H139/E139 -> 8.95 | I140: OK
B141: BDI % | H141: =1+$M$1 -> 1.2419
B142: TOTAL DO SERVIÇO - R$ | H142: =H140*H141 -> 11.115005
A144: =A129+1 -> 10 | B144: CODEVASF | E144: COMPOSIÇÃO DE PREÇO UNITÁRIO | I144: =H153 -> 2.03 | J144: =H155 -> 2.521057
B145: OBRA: | C145: =$C$2 -> DEMOLIÇÃO DE PASSAGENS MOLHADAS SOBRE O RIO SÃO LAMBERTO E RIBEIRÃO TRAÍRAS | G145: DATA: | H145: =$H$2 -> OUTUBRO / 2024
B146: SERVIÇO: | C146: =VLOOKUP(A144,ORÇ.FINAL!A:I,3,0) -> TRANSPORTE COM CAMINHÃO BASCULANTE, MATERIAL EM GERAL (AREIA, ENTULHO, ETC.), EM VIA COM REVESTIMENTO PRIMÁRIO | E146: SINAPI | F146: =VLOOKUP(A144,ORÇ.FINAL!A:I,4,0) -> 95426 | G146: UNIDADE: | H146: =VLOOKUP(A144,ORÇ.FINAL!A:I,5,0) -> M3XKM | I146: OK
B148: TIPO ITEM | C148: CODIGO ITEM | D148: DESCRIÇÃO ITEM | E148: UNIDADE ITEM | F148: COEFICIENTE | G148: PRECO UNITARIO | H148: CUSTO TOTAL
B149: COMPOSICAO | C149: 89883 | D149: CAMINHÃO BASCULANTE 18 M3, COM CAVALO MECÂNICO DE CAPACIDADE MÁXIMA DE TRAÇÃO COMBINADO DE 45000 KG, POTÊNCIA 330 CV, INCLUSIVE SEMIREBOQUE COM CAÇAMBA METÁLICA | E149: CHP | F149: 0,0050000 | G149: 366,36 | H149: =ROUNDDOWN(F149*G149,2) -> 1.83
B150: COMPOSICAO | C150: 89884 | D150: CAMINHÃO BASCULANTE 18 M3, COM CAVALO MECÂNICO DE CAPACIDADE MÁXIMA DE TRAÇÃO COMBINADO DE 45000 KG, POTÊNCIA 330 CV, INCLUSIVE SEMIREBOQUE COM CAÇAMBA METÁLICA | E150: CHI | F150: 0,0022000 | G150: 95,31 | H150: 0.2
H151: 0
B152: PRODUÇÃO DA EQUIPE | E152: 1 | F152: CUSTO | H152: =SUM(H149:H151) -> 2.03
B153: TOTAL | H153: =H152/E152 -> 2.03 | I153: OK
B154: BDI % | H154: =1+$M$1 -> 1.2419
B155: TOTAL DO SERVIÇO - R$ | H155: =H153*H154 -> 2.521057
A157: =A144+1 -> 11 | B157: CODEVASF | E157: COMPOSIÇÃO DE PREÇO UNITÁRIO | I157: =H166 -> 0.76 | J157: =H168 -> 0.943844
B158: OBRA: | C158: =$C$2 -> DEMOLIÇÃO DE PASSAGENS MOLHADAS SOBRE O RIO SÃO LAMBERTO E RIBEIRÃO TRAÍRAS | G158: DATA: | H158: =$H$2 -> OUTUBRO / 2024
B159: SERVIÇO: | C159: =VLOOKUP(A157,ORÇ.FINAL!A:I,3,0) -> TRANSPORTE COM CAMINHÃO BASCULANTE, MATERIAL EM GERAL (AREIA, ENTULHO, ETC.), EM VIA PAVIMENTADA | E159: SINAPI | F159: =VLOOKUP(A157,ORÇ.FINAL!A:I,4,0) -> 95427 | G159: UNIDADE: | H159: =VLOOKUP(A157,ORÇ.FINAL!A:I,5,0) -> M3XKM | I159: OK
B161: TIPO ITEM | C161: CODIGO ITEM | D161: DESCRIÇÃO ITEM | E161: UNIDADE ITEM | F161: COEFICIENTE | G161: PRECO UNITARIO | H161: CUSTO TOTAL
B162: COMPOSICAO | C162: 89883 | D162: CAMINHÃO BASCULANTE 18 M3, COM CAVALO MECÂNICO DE CAPACIDADE MÁXIMA DE TRAÇÃO COMBINADO DE 45000 KG, POTÊNCIA 330 CV, INCLUSIVE SEMIREBOQUE COM CAÇAMBA METÁLICA | E162: CHP | F162: 0,0019000 | G162: =G149 -> 366,36 | H162: =ROUNDDOWN(F162*G162,2) -> 0.69
B163: COMPOSICAO | C163: 89884 | D163: CAMINHÃO BASCULANTE 18 M3, COM CAVALO MECÂNICO DE CAPACIDADE MÁXIMA DE TRAÇÃO COMBINADO DE 45000 KG, POTÊNCIA 330 CV, INCLUSIVE SEMIREBOQUE COM CAÇAMBA METÁLICA | E163: CHI | F163: 0,0008000 | G163: =G150 -> 95,31 | H163: 0.07
H164: 0
B165: PRODUÇÃO DA EQUIPE | E165: 1 | F165: CUSTO | H165: =SUM(H162:H164) -> 0.76
B166: TOTAL | H166: =H165/E165 -> 0.76 | I166: OK
B167: BDI % | H167: =1+$M$1 -> 1.2419
B168: TOTAL DO SERVIÇO - R$ | H168: =H166*H167 -> 0.943844
A170: =A157+1 -> 12 | B170: CODEVASF | E170: COMPOSIÇÃO DE PREÇO UNITÁRIO | I170: =H180 -> 0.14 | J170: =H182 -> 0.173866
B171: OBRA: | C171: =$C$2 -> DEMOLIÇÃO DE PASSAGENS MOLHADAS SOBRE O RIO SÃO LAMBERTO E RIBEIRÃO TRAÍRAS | G171: DATA: | H171: =$H$2 -> OUTUBRO / 2024
B172: SERVIÇO: | C172: =VLOOKUP(A170,ORÇ.FINAL!A:I,3,0) -> REGULARIZAÇÃO DE SUPERFÍCIES COM MOTONIVELADORA | E172: SINAPI | F172: =VLOOKUP(A170,ORÇ.FINAL!A:I,4,0) -> 100575 | G172: UNIDADE: | H172: =VLOOKUP(A170,ORÇ.FINAL!A:I,5,0) -> M2 | I172: OK
B174: TIPO ITEM | C174: CODIGO ITEM | D174: DESCRIÇÃO ITEM | E174: UNIDADE ITEM | F174: COEFICIENTE | G174: PRECO UNITARIO | H174: CUSTO TOTAL
B175: COMPOSICAO | C175: 5932 | D175: MOTONIVELADORA POTÊNCIA BÁSICA LÍQUIDA (PRIMEIRA MARCHA) 125 HP, PESO BRUTO 13032 KG, LARGURA DA LÂMINA DE 3,7 M | E175: CHP | F175: 0,0001000 | G175: 254,79 | H175: =ROUNDDOWN(F175*G175,2) -> 0.02
B176: COMPOSICAO | C176: 5934 | D176: MOTONIVELADORA POTÊNCIA BÁSICA LÍQUIDA (PRIMEIRA MARCHA) 125 HP, PESO BRUTO 13032 KG, LARGURA DA LÂMINA DE 3,7 M | E176: CHI | F176: 0,0010000 | G176: 100,07 | H176: 0.1
B177: COMPOSICAO | C177: 88316 | D177: SERVENTE COM ENCARGOS COMPLEMENTARES | E177: H | F177: 0,0010000 | G177: 20,41 | H177: 0.02
H178: 0
B179: PRODUÇÃO DA EQUIPE | E179: 1 | F179: CUSTO | H179: =SUM(H175:H178) -> 0.14
B180: TOTAL | H180: =H179/E179 -> 0.14 | I180: OK
B181: BDI % | H181: =1+$M$1 -> 1.2419
B182: TOTAL DO SERVIÇO - R$ | H182: =H180*H181 -> 0.173866

Sheet BDI SERV
B1: DETALHAMENTO DO BDI - SERVIÇOS
B4: Item | C4: Descrição dos Serviços | D4: % | E4: %
D5: PV | E5: CD
B7: 1 | C7: ADMINISTRAÇÃO CENTRAL | E7: 4
B8: 1.1 | C8: ESCRITÓRIO CENTRAL
B9: 1.2 | C9: VIAGENS
B10: 1.3 | C10: OUTROS
B12: 2 | C12: IMPOSTOS E TAXAS | D12: =SUM(D13:D16) -> 6.65 | E12: =SUM(E13:E16) -> 8.31
B13: 2.1 | C13: ISS (*) | D13: 3 | E13: =ROUND(D13*1.2515,2) -> 3.75
B14: 2.2 | C14: PIS | D14: 0.65 | E14: 0.81
B15: 2.3 | C15: Cofins | D15: 3 | E15: 3.75
B16: 2.4 | C16: CONTRIBUIÇÃO PREVIDENCIÁRIA SOBRE A RENDA BRUTA | D16: 0 | E16: 0
B18: 3 | C18: TAXA DE RISCO | E18: =SUM(E19:E22) -> 2.26
B19: 3.1 | C19: SEGURO | E19: 0.4
B20: 3.2 | C20: RISCO | E20: 1.46
B21: 3.3 | C21: GARANTIA | E21: 0.4
B23: 4 | C23: DESPESAS FINANCEIRAS | E23: 1.02
B25: 5 | C25: LUCRO | E25: 8
C27: BDI - CALCULADO | E27: =ROUND((((1+(E7+E18)/100)*(1+E23/100)*(1+E25/100)/(1-D12/100)-1)*100),2) -> 24.19
A29: BDI = ((1+((AC+S+R+G)/100))x(1+DF/100)x(1+L/100)/(1-I/100)-1)*100
B31: BDI (CALCULADO): | D31: =ROUND((((1+((E7+E18)/100))*(1+E23/100)*(1+E25/100))/(1-D12/100)-1)*100,2) -> 24.19 | E31: %
A33: (*) ISS Conforme Lei Complementar nº 001/2001, de 18 de setembro de 2001 - Art. 47 § 6º - Sem necessidade de comprovação dos materiais
A37: BDI EM CONFORMIDADE COM OS ACÓRDÃOS Nº 2369/2011 e ACÓRDÃO Nº 2.622/2013 - TCU - PLENÁRIO

Sheet BDI_NOVO MODELO
B1: DETALHAMENTO DO BDI - SERVIÇOS
B4: Item | C4: Descrição dos Serviços | D4: % - PV | E4: % - CD
B6: 1 | C6: ADMINISTRAÇÃO CENTRAL | E6: =SUM(E7:E9) -> 4
B7: 1.1 | C7: ESCRITÓRIO CENTRAL | E7: 4
B8: 1.2 | C8: VIAGENS
B9: 1.3 | C9: OUTROS
B11: 2 | C11: IMPOSTOS E TAXAS | D11: =SUM(D12:D15) -> 6.65 | E11: =SUM(E12:E15) -> 0
B12: 2.1 | C12: ISS - Proposta | D12: 3
B13: 2.2 | C13: PIS | D13: 0.65
B14: 2.3 | C14: Cofins | D14: 3
B15: 2.4 | C15: Contribuição Previdenciaria (CPRB)
B17: 3 | C17: TAXA DE RISCO | E17: =SUM(E18:E20) -> 2.26
B18: 3.1 | C18: SEGURO | E18: 0.4
B19: 3.2 | C19: RISCO | E19: 1.46
B20: 3.3 | C20: GARANTIA | E20: 0.4
B22: 4 | C22: DESPESAS FINANCEIRAS | E22: 1.02
B24: 5 | C24: LUCRO | E24: 8
B26: BDI APRESENTADO: | E26: =IF($D$41=$C$43,$D$43,IF($D$41=$C$44,$D$44,IF($D$41=$C$44,$D$44,IF($D$41=$C$45,$D$45,0)))) -> 24.19
C28: Legislação Municipal: | D28: Cod. Tributário - Lei nº 001/2001 - Art. 65 - Grupo A
C29: Município: | D29: Claro dos Poções/MG
C30: Alíquota ISSQN: | D30: 0.03 | E30: Município
C31: Base de Cálculo: | D31: 1 | E31: Art. 65, Quadro "Grupo A"
C32: Valor Serviço: | D32: =ORÇ.FINAL!I25 -> 154664.29
C33: Dedução - Material (estimado): | D33: =0*D32 -> 0 | E33: =D33/D32 -> 0
C34: ISSQN BDI: | D34: =IF(D32="",0,ROUND(IF(D31=D49,((1-(D33/D32))*D30),D30*D31),4)) -> 0.03 | E34: (*)
A36: Acórdão nº 2.622/2013 - TCU Plenário
A37: BDI = ARRED((((((1+(AC+TR)/100)*(1+DF/100)*(1+L/100))/(1-IMP/100))-1)*100);2)
B39: (*) É obrigação da licitante a verificação da Legislação Tributária vigente no município, bem como o cálculo dos valores totais de serviços e materiais estimados, para apresentação de sua proposta.
C41: Forma de Cálculo do BDI: | D41: BDI - Acórdão nº 2.622/2013 - TCU
C43: BDI - Digitado | D43: =ROUND(E6+E11+E17+E22+E24,2) -> 15.28
C44: BDI - Calculado | D44: =ROUND((((1+(E6/100+E22/100+E17/100))/(1-(D11/100+E24/100)))-1)*100,2) -> 25.69
C45: BDI - Acórdão nº 2.622/2013 - TCU | D45: =ROUND((((((1+(E6+E17)/100)*(1+E22/100)*(1+E24/100))/(1-D11/100))-1)*100),2) -> 24.19
D49: Dedução - Material | E49: Município
D50: 0.1 | E50: Simples Nacional
D51: 0.2 | E51: Municípios Indefinidos
D52: 0.3
D53: 0.4
D54: 0.5
D55: 0.6
D56: 0.7
D57: 0.8
D58: 0.9
D59: 1
D60: =E31 -> Art. 65, Quadro "Grupo A"

Sheet CRONOGRAMA
B1: CRONOGRAMA FÍSICO-FINANCEIRO
B2: OBRA: | C2: =ORÇ.FINAL!C5 -> DEMOLIÇÃO DE PASSAGENS MOLHADAS SOBRE O RIO SÃO LAMBERTO E RIBEIRÃO TRAÍRAS | F2: VALOR: | G2: =ORÇ.FINAL!I25 -> 154664.29
F3: PRAZO EXEC.: | G3: 60 DIAS
B5: ITEM | C5: ETAPAS/DESCRIÇAO | D5: FISICO/ FINANCEIRO | E5: TOTAL ETAPAS | F5: MÊS 1 | G5: MÊS 2 | H5: TOTAL
A6: A | B6: =VLOOKUP(A6,ORÇ.FINAL!A:I,2,0) -> 1 | C6: =VLOOKUP(A6,ORÇ.FINAL!A:I,3,3) -> SERVIÇOS PRELIMINARES | D6: FISICO | E6: =ROUND(E7/G2,4) -> 0.1939 | F6: 0.6 | G6: 0.4 | H6: =SUM(F6:G6) -> 1
D7: FINANCEIRO | E7: =ORÇ.FINAL!I10 -> 29989.08 | F7: =ROUND($E$7*F6,2) -> 17993.45 | G7: 11995.63 | H7: 29989.08
A8: B | B8: =VLOOKUP(A8,ORÇ.FINAL!A:I,2,0) -> 2 | C8: =VLOOKUP(A8,ORÇ.FINAL!A:I,3,3) -> SERVIÇOS DE DEMOLIÇÃO | D8: FISICO | E8: =ROUND(E9/G2,4) -> 0.8061 | F8: 0.55 | G8: 0.45 | H8: 1
D9: FINANCEIRO | E9: =ORÇ.FINAL!I16 -> 124675.21 | F9: =ROUND($E$9*F8,2) -> 68571.37 | G9: 56103.84 | H9: 124675.21
B10: TOTAL | D10: FISICO | E10: =SUM(F10:F10) -> 0.5596949367 | F10: =F11/E11 -> 0.5596949367 | G10: =G11/F11 -> 0.7866875943 | H10: 1.346382531
D11: FINANCEIRO | E11: =E9+E7 -> 154664.29 | F11: =F7+F9 -> 86564.82 | G11: =G7+G9 -> 68099.47 | H11: 154664.29
B12: OBSERVAÇÕES:
